[Event "*** Titled Tuesday Blitz"]
[Site "Chess.com"]
[Date "2020.05.19"]
[Round "8"]
[White "Chessmatus"]
[Black "PavelShkapenko"]
[Result "1/2-1/2"]
[WhiteElo "2494"]
[BlackElo "2656"]
[TimeControl "180+1"]
[EndTime "13:37:17 PDT"]
[Termination "Game drawn - insufficient material"]

1. e4 {[%clk 0:03:00.9]} 1... c5 {[%clk 0:02:57.5]} 2. Nf3 {[%clk 0:02:56.6]}
2... e6 {[%clk 0:02:57.9]} 3. d4 {[%clk 0:02:55.2]} 3... cxd4 {[%clk 0:02:58.5]}
4. Nxd4 {[%clk 0:02:55.6]} 4... Nf6 {[%clk 0:02:59.1]} 5. Nc3 {[%clk 0:02:54.6]}
5... Nc6 {[%clk 0:02:59.6]} 6. Ndb5 {[%clk 0:02:53.9]} 6... Bb4 {[%clk
0:02:59.9]} 7. a3 {[%clk 0:02:54]} 7... Bxc3+ {[%clk 0:03:00.3]} 8. Nxc3 {[%clk
0:02:54.9]} 8... d5 {[%clk 0:03:00.9]} 9. exd5 {[%clk 0:02:52.9]} 9... exd5
{[%clk 0:03:00.7]} 10. Bd3 {[%clk 0:02:53.1]} 10... d4 {[%clk 0:03:01.2]} 11.
Ne2 {[%clk 0:02:52.9]} 11... Bf5 {[%clk 0:03:01.2]} 12. O-O {[%clk 0:02:47.1]}
12... Bg6 {[%clk 0:03:01.2]} 13. b4 {[%clk 0:02:34]} 13... O-O {[%clk
0:02:58.9]} 14. Bb2 {[%clk 0:02:34.2]} 14... Rc8 {[%clk 0:02:58.5]} 15. Bxg6
{[%clk 0:02:27.6]} 15... hxg6 {[%clk 0:02:58.2]} 16. Nxd4 {[%clk 0:02:27.9]}
16... Qd5 {[%clk 0:02:28.7]} 17. Nf3 {[%clk 0:01:22.1]} 17... Ne7 {[%clk
0:02:06.9]} 18. Re1 {[%clk 0:01:16.1]} 18... Qxd1 {[%clk 0:01:42.6]} 19. Raxd1
{[%clk 0:01:17]} 19... Ned5 {[%clk 0:01:42.9]} 20. Bxf6 {[%clk 0:01:05.8]} 20...
Nxf6 {[%clk 0:01:42.9]} 21. Re7 {[%clk 0:01:05.9]} 21... b5 {[%clk 0:01:26.3]}
22. Rxa7 {[%clk 0:00:53.1]} 22... Rxc2 {[%clk 0:01:26.3]} 23. Rb7 {[%clk
0:00:41.6]} 23... Ra2 {[%clk 0:01:10.9]} 24. Rxb5 {[%clk 0:00:39]} 24... Rxa3
{[%clk 0:01:11.4]} 25. h3 {[%clk 0:00:39.2]} 25... Ne4 {[%clk 0:01:09.2]} 26.
Re1 {[%clk 0:00:37.1]} 26... Nc3 {[%clk 0:01:05.8]} 27. Rc5 {[%clk 0:00:26.1]}
27... Rb3 {[%clk 0:00:56.4]} 28. Rc4 {[%clk 0:00:26.3]} 28... Nd5 {[%clk
0:00:54.9]} 29. Ree4 {[%clk 0:00:20.5]} 29... Rb8 {[%clk 0:00:50]} 30. Ng5
{[%clk 0:00:10]} 30... R3xb4 {[%clk 0:00:40]} 31. Rxb4 {[%clk 0:00:10]} 31...
Nxb4 {[%clk 0:00:40.2]} 32. Re7 {[%clk 0:00:10.3]} 32... Rf8 {[%clk 0:00:40.8]}
33. Rd7 {[%clk 0:00:10.1]} 33... Nc6 {[%clk 0:00:40.5]} 34. f4 {[%clk
0:00:09.7]} 34... f6 {[%clk 0:00:31.1]} 35. Ne6 {[%clk 0:00:09.4]} 35... Rf7
{[%clk 0:00:31.4]} 36. Rxf7 {[%clk 0:00:09.3]} 36... Kxf7 {[%clk 0:00:31]} 37.
Nc5 {[%clk 0:00:10.2]} 37... Ke7 {[%clk 0:00:31]} 38. Kf2 {[%clk 0:00:10.2]}
38... Kd6 {[%clk 0:00:31.3]} 39. Nd3 {[%clk 0:00:10.6]} 39... Kd5 {[%clk
0:00:31.3]} 40. Ke3 {[%clk 0:00:10.9]} 40... Ne7 {[%clk 0:00:29.6]} 41. g4
{[%clk 0:00:10.9]} 41... Ke6 {[%clk 0:00:29.4]} 42. Ke4 {[%clk 0:00:10.3]} 42...
f5+ {[%clk 0:00:29.9]} 43. Kf3 {[%clk 0:00:10.8]} 43... Kd5 {[%clk 0:00:29.5]}
44. Ne1 {[%clk 0:00:10.7]} 44... Kd4 {[%clk 0:00:29.2]} 45. Ng2 {[%clk
0:00:10.9]} 45... Kd3 {[%clk 0:00:25.4]} 46. Ne1+ {[%clk 0:00:11.2]} 46... Kd2
{[%clk 0:00:25]} 47. Ng2 {[%clk 0:00:11.5]} 47... Nc6 {[%clk 0:00:25.3]} 48. Nh4
{[%clk 0:00:11.7]} 48... Nd4+ {[%clk 0:00:25.2]} 49. Kf2 {[%clk 0:00:12]} 49...
fxg4 {[%clk 0:00:24.2]} 50. hxg4 {[%clk 0:00:12.5]} 50... g5 {[%clk 0:00:23.4]}
51. fxg5 {[%clk 0:00:12.9]} 51... Ne6 {[%clk 0:00:23.7]} 52. g6 {[%clk
0:00:13.2]} 52... Kd3 {[%clk 0:00:23.2]} 53. Kf3 {[%clk 0:00:12.3]} 53... Kd4
{[%clk 0:00:23.4]} 54. Nf5+ {[%clk 0:00:12.1]} 54... Ke5 {[%clk 0:00:23.5]} 55.
Kg3 {[%clk 0:00:12.3]} 55... Kf6 {[%clk 0:00:23.6]} 56. Kh4 {[%clk 0:00:12.6]}
56... Kxg6 {[%clk 0:00:23.7]} 57. Nxg7 {[%clk 0:00:12.1]} 57... Kxg7 {[%clk
0:00:23.3]} 58. g5 {[%clk 0:00:12.5]} 58... Nxg5 {[%clk 0:00:23.4]} 1/2-1/2

[Event "*** Titled Tuesday Blitz"]
[Site "Chess.com"]
[Date "2020.05.19"]
[Round "8"]
[White "Abund"]
[Black "ehrenfeld"]
[Result "1-0"]
[WhiteElo "2616"]
[BlackElo "2447"]
[TimeControl "180+1"]
[EndTime "13:37:18 PDT"]
[Termination "Abund won on time"]

1. d4 {[%clk 0:02:21.2]} 1... f5 {[%clk 0:02:59]} 2. Bg5 {[%clk 0:02:19.9]} 2...
g6 {[%clk 0:02:58.3]} 3. Nc3 {[%clk 0:02:18.6]} 3... Bg7 {[%clk 0:02:54.9]} 4.
e4 {[%clk 0:02:09.2]} 4... fxe4 {[%clk 0:02:53.1]} 5. Nxe4 {[%clk 0:02:08.9]}
5... d5 {[%clk 0:02:51.2]} 6. Ng3 {[%clk 0:01:56.9]} 6... c5 {[%clk 0:02:47.7]}
7. Nf3 {[%clk 0:01:51.1]} 7... Nc6 {[%clk 0:02:42.1]} 8. c3 {[%clk 0:01:44.7]}
8... cxd4 {[%clk 0:02:35.1]} 9. Nxd4 {[%clk 0:01:25.8]} 9... Nxd4 {[%clk
0:02:33.5]} 10. cxd4 {[%clk 0:01:26.1]} 10... Qb6 {[%clk 0:02:12.4]} 11. Be3
{[%clk 0:01:26.2]} 11... Qxb2 {[%clk 0:01:55]} 12. Rb1 {[%clk 0:00:48.2]} 12...
Qc3+ {[%clk 0:01:52]} 13. Qd2 {[%clk 0:00:44.5]} 13... Qxd2+ {[%clk 0:01:51.4]}
14. Kxd2 {[%clk 0:00:45.4]} 14... Nf6 {[%clk 0:01:46]} 15. Bb5+ {[%clk
0:00:45.2]} 15... Kf7 {[%clk 0:01:45.6]} 16. Rhc1 {[%clk 0:00:45]} 16... h5
{[%clk 0:01:16.3]} 17. h3 {[%clk 0:00:41]} 17... h4 {[%clk 0:01:14.5]} 18. Ne2
{[%clk 0:00:38.9]} 18... Bf5 {[%clk 0:01:12]} 19. Bd3 {[%clk 0:00:26.9]} 19...
b6 {[%clk 0:00:58.9]} 20. Rc7 {[%clk 0:00:23]} 20... Rhc8 {[%clk 0:00:54.7]} 21.
Rbc1 {[%clk 0:00:22.8]} 21... Rxc7 {[%clk 0:00:29.6]} 22. Rxc7 {[%clk
0:00:23.7]} 22... Bxd3 {[%clk 0:00:29.9]} 23. Kxd3 {[%clk 0:00:22.7]} 23... Ne8
{[%clk 0:00:28.4]} 24. Rc6 {[%clk 0:00:18]} 24... Rd8 {[%clk 0:00:20.7]} 25. Bg5
{[%clk 0:00:17.2]} 25... Bf6 {[%clk 0:00:20.7]} 26. Bf4 {[%clk 0:00:10.1]} 26...
g5 {[%clk 0:00:18.1]} 27. Be3 {[%clk 0:00:09.3]} 27... Nd6 {[%clk 0:00:17]} 28.
Ng1 {[%clk 0:00:09.3]} 28... Rc8 {[%clk 0:00:16]} 29. Rxc8 {[%clk 0:00:08.9]}
29... Nxc8 {[%clk 0:00:15.9]} 30. Nf3 {[%clk 0:00:07.9]} 30... Kg6 {[%clk
0:00:16.3]} 31. g3 {[%clk 0:00:07.8]} 31... hxg3 {[%clk 0:00:15.2]} 32. fxg3
{[%clk 0:00:07.9]} 32... Nd6 {[%clk 0:00:15.7]} 33. g4 {[%clk 0:00:05.2]} 33...
e6 {[%clk 0:00:13.2]} 34. Bf2 {[%clk 0:00:05.2]} 34... Nf7 {[%clk 0:00:12.9]}
35. Bg3 {[%clk 0:00:05.3]} 35... Be7 {[%clk 0:00:11]} 36. Bb8 {[%clk 0:00:05]}
36... a6 {[%clk 0:00:10.1]} 37. Bc7 {[%clk 0:00:05.3]} 37... b5 {[%clk
0:00:10.5]} 38. Ne5+ {[%clk 0:00:05.4]} 38... Nxe5+ {[%clk 0:00:09.6]} 39. Bxe5
{[%clk 0:00:05.8]} 39... Bf6 {[%clk 0:00:09.8]} 40. Bd6 {[%clk 0:00:05.5]} 40...
Bd8 {[%clk 0:00:08.3]} 41. Kc3 {[%clk 0:00:04.9]} 41... Ba5+ {[%clk 0:00:07.7]}
42. Kb3 {[%clk 0:00:04.6]} 42... Be1 {[%clk 0:00:07.8]} 43. Be5 {[%clk
0:00:04.6]} 43... Bd2 {[%clk 0:00:07.4]} 44. Kc2 {[%clk 0:00:04.7]} 44... Be1
{[%clk 0:00:07.3]} 45. Kd3 {[%clk 0:00:04.6]} 45... a5 {[%clk 0:00:06.9]} 46.
Kc2 {[%clk 0:00:04.8]} 46... a4 {[%clk 0:00:06.3]} 47. Kd3 {[%clk 0:00:03.2]}
47... b4 {[%clk 0:00:06]} 48. Kc2 {[%clk 0:00:03.2]} 1-0

[Event "*** Titled Tuesday Blitz"]
[Site "Chess.com"]
[Date "2020.05.19"]
[Round "8"]
[White "RojonR"]
[Black "vpantev"]
[Result "1-0"]
[WhiteElo "2431"]
[BlackElo "2549"]
[TimeControl "180+1"]
[EndTime "13:37:18 PDT"]
[Termination "RojonR won by checkmate"]

1. e4 {[%clk 0:03:00.9]} 1... c6 {[%clk 0:02:49.6]} 2. Nc3 {[%clk 0:02:59.8]}
2... d5 {[%clk 0:02:50.5]} 3. Qe2 {[%clk 0:03:00]} 3... dxe4 {[%clk 0:02:50]} 4.
Nxe4 {[%clk 0:03:00.2]} 4... Nf6 {[%clk 0:02:50.5]} 5. Nxf6+ {[%clk 0:02:59.8]}
5... gxf6 {[%clk 0:02:50.4]} 6. Nf3 {[%clk 0:03:00.1]} 6... Bf5 {[%clk
0:02:45.6]} 7. d4 {[%clk 0:02:57.2]} 7... e6 {[%clk 0:02:45]} 8. c3 {[%clk
0:02:46.7]} 8... Nd7 {[%clk 0:02:43.2]} 9. Nh4 {[%clk 0:02:42.7]} 9... Bg6
{[%clk 0:02:42.9]} 10. Nxg6 {[%clk 0:02:37.2]} 10... hxg6 {[%clk 0:02:42.4]} 11.
g3 {[%clk 0:02:37.5]} 11... f5 {[%clk 0:02:41.9]} 12. Bg2 {[%clk 0:02:37]} 12...
Nf6 {[%clk 0:02:41.5]} 13. Bf4 {[%clk 0:02:21.1]} 13... Bd6 {[%clk 0:02:40.8]}
14. Be5 {[%clk 0:02:18.6]} 14... Qe7 {[%clk 0:02:34.1]} 15. O-O-O {[%clk
0:02:16.3]} 15... O-O-O {[%clk 0:02:29.9]} 16. f4 {[%clk 0:01:58.1]} 16... Rhe8
{[%clk 0:02:26.8]} 17. Kb1 {[%clk 0:01:46.3]} 17... Nd5 {[%clk 0:02:26]} 18. c4
{[%clk 0:01:41.6]} 18... Nc7 {[%clk 0:02:20.8]} 19. Qe3 {[%clk 0:00:56.9]} 19...
f6 {[%clk 0:02:12]} 20. Bxd6 {[%clk 0:00:55.1]} 20... Qxd6 {[%clk 0:02:12]} 21.
Bf3 {[%clk 0:00:45.9]} 21... Kb8 {[%clk 0:02:09.9]} 22. Rhe1 {[%clk 0:00:45.1]}
22... Na6 {[%clk 0:02:07.1]} 23. h4 {[%clk 0:00:42.5]} 23... c5 {[%clk
0:02:06.3]} 24. dxc5 {[%clk 0:00:36.8]} 24... Qxc5 {[%clk 0:02:02.1]} 25. Rxd8+
{[%clk 0:00:36.6]} 25... Rxd8 {[%clk 0:02:01]} 26. Qxe6 {[%clk 0:00:19.2]} 26...
Nc7 {[%clk 0:01:39.3]} 27. Qxf6 {[%clk 0:00:16.9]} 27... Rf8 {[%clk 0:01:30.6]}
28. Qc3 {[%clk 0:00:16.7]} 28... Qf2 {[%clk 0:01:25.3]} 29. Re7 {[%clk
0:00:16.3]} 29... Qxg3 {[%clk 0:01:17.1]} 30. Qe5 {[%clk 0:00:14.5]} 30... Qg1+
{[%clk 0:01:09.2]} 31. Kc2 {[%clk 0:00:14.2]} 31... Qf2+ {[%clk 0:01:09]} 32.
Be2 {[%clk 0:00:11.7]} 32... Rc8 {[%clk 0:01:06.5]} 33. a4 {[%clk 0:00:08.2]}
33... a6 {[%clk 0:01:05.2]} 34. a5 {[%clk 0:00:07.8]} 34... Qe1 {[%clk
0:01:00.7]} 35. Qc3 {[%clk 0:00:06.7]} 35... Qf2 {[%clk 0:00:59]} 36. Qe5 {[%clk
0:00:05.7]} 36... Qe1 {[%clk 0:00:57.9]} 37. h5 {[%clk 0:00:05]} 37... gxh5
{[%clk 0:00:56]} 38. Bxh5 {[%clk 0:00:05.2]} 38... Qb4 {[%clk 0:00:50.9]} 39.
Bf3 {[%clk 0:00:04.3]} 39... Qxc4+ {[%clk 0:00:49.2]} 40. Kd2 {[%clk 0:00:04.3]}
40... Rd8+ {[%clk 0:00:47]} 41. Ke1 {[%clk 0:00:04.7]} 41... Qc1+ {[%clk
0:00:46.6]} 42. Kf2 {[%clk 0:00:05]} 42... Qd2+ {[%clk 0:00:43.9]} 43. Be2
{[%clk 0:00:04.6]} 43... Rc8 {[%clk 0:00:43.5]} 44. Qxf5 {[%clk 0:00:03]} 44...
Qxb2 {[%clk 0:00:42.2]} 45. Qe5 {[%clk 0:00:03.1]} 45... Qc1 {[%clk 0:00:39.4]}
46. f5 {[%clk 0:00:03.5]} 46... Qh6 {[%clk 0:00:38.9]} 47. f6 {[%clk 0:00:03.6]}
47... Qh4+ {[%clk 0:00:38.9]} 48. Ke3 {[%clk 0:00:02.7]} 48... Qh6+ {[%clk
0:00:37.1]} 49. Kf2 {[%clk 0:00:02.5]} 49... Qh4+ {[%clk 0:00:36.7]} 50. Ke3
{[%clk 0:00:03.1]} 50... Qh3+ {[%clk 0:00:35.2]} 51. Ke4 {[%clk 0:00:03.4]}
51... Qg2+ {[%clk 0:00:34.4]} 52. Bf3 {[%clk 0:00:03.3]} 52... Qc2+ {[%clk
0:00:33.8]} 53. Kf4 {[%clk 0:00:03.5]} 53... Rd8 {[%clk 0:00:31.5]} 54. f7
{[%clk 0:00:03.8]} 54... Qd2+ {[%clk 0:00:31.5]} 55. Kf5 {[%clk 0:00:03.9]}
55... Qc2+ {[%clk 0:00:31.3]} 56. Kf6 {[%clk 0:00:04]} 56... Rd3 {[%clk
0:00:28.7]} 57. Be4 {[%clk 0:00:03]} 57... Qf2+ {[%clk 0:00:27.8]} 58. Bf5
{[%clk 0:00:02.8]} 58... Rd8 {[%clk 0:00:26.8]} 59. Qxc7+ {[%clk 0:00:02.8]}
59... Ka7 {[%clk 0:00:26.8]} 60. Qxb7# {[%clk 0:00:03.4]} 1-0

[Event "*** Titled Tuesday Blitz"]
[Site "Chess.com"]
[Date "2020.05.19"]
[Round "8"]
[White "lili_ani"]
[Black "stasiek18"]
[Result "0-1"]
[WhiteElo "2545"]
[BlackElo "2370"]
[TimeControl "180+1"]
[EndTime "13:37:19 PDT"]
[Termination "stasiek18 won on time"]

1. d4 {[%clk 0:03:00.9]} 1... Nf6 {[%clk 0:02:59.5]} 2. c4 {[%clk 0:03:00.2]}
2... g6 {[%clk 0:02:59.9]} 3. Nf3 {[%clk 0:02:59.2]} 3... Bg7 {[%clk 0:02:59.7]}
4. Nc3 {[%clk 0:02:59.3]} 4... d5 {[%clk 0:02:59.7]} 5. cxd5 {[%clk 0:02:39.9]}
5... Nxd5 {[%clk 0:03:00.6]} 6. Bd2 {[%clk 0:02:38.7]} 6... O-O {[%clk
0:02:57.4]} 7. g3 {[%clk 0:02:33.9]} 7... Nc6 {[%clk 0:02:51.1]} 8. Bg2 {[%clk
0:02:31.2]} 8... Nb6 {[%clk 0:02:51.1]} 9. e3 {[%clk 0:02:15.5]} 9... e5 {[%clk
0:02:29]} 10. dxe5 {[%clk 0:02:13.1]} 10... Nxe5 {[%clk 0:02:29.2]} 11. Nxe5
{[%clk 0:02:11.9]} 11... Bxe5 {[%clk 0:02:30.1]} 12. O-O {[%clk 0:02:11.7]}
12... Qe7 {[%clk 0:02:27]} 13. Qe2 {[%clk 0:02:07.5]} 13... Be6 {[%clk
0:02:26.9]} 14. b3 {[%clk 0:02:07.1]} 14... c6 {[%clk 0:02:23.7]} 15. Rac1
{[%clk 0:02:05]} 15... a5 {[%clk 0:02:21.7]} 16. Ne4 {[%clk 0:01:33]} 16... Bd5
{[%clk 0:02:11.8]} 17. Nc5 {[%clk 0:01:23.4]} 17... Bxg2 {[%clk 0:02:08.9]} 18.
Kxg2 {[%clk 0:01:24.3]} 18... a4 {[%clk 0:02:01.9]} 19. Nd3 {[%clk 0:01:23.6]}
19... Bg7 {[%clk 0:01:57.9]} 20. Bb4 {[%clk 0:01:21.9]} 20... Qe4+ {[%clk
0:01:46.2]} 21. f3 {[%clk 0:01:22]} 21... Qe6 {[%clk 0:01:33.9]} 22. Bxf8 {[%clk
0:01:21.3]} 22... Rxf8 {[%clk 0:01:31.6]} 23. e4 {[%clk 0:01:15.8]} 23... axb3
{[%clk 0:01:30.9]} 24. Nc5 {[%clk 0:01:15.8]} 24... Qe7 {[%clk 0:01:27.7]} 25.
axb3 {[%clk 0:01:15.5]} 25... Nd5 {[%clk 0:01:09.6]} 26. Rfe1 {[%clk 0:01:14.9]}
26... Nc3 {[%clk 0:01:07.2]} 27. Qc4 {[%clk 0:01:11.4]} 27... b5 {[%clk
0:01:04.7]} 28. Qb4 {[%clk 0:00:58.1]} 28... Na2 {[%clk 0:01:04.5]} 29. Qd2
{[%clk 0:00:46.5]} 29... Nxc1 {[%clk 0:01:04.2]} 30. Rxc1 {[%clk 0:00:47.4]}
30... Rd8 {[%clk 0:01:03.8]} 31. Qe2 {[%clk 0:00:33.2]} 31... h5 {[%clk
0:01:00.1]} 32. f4 {[%clk 0:00:27.9]} 32... h4 {[%clk 0:00:58.5]} 33. e5 {[%clk
0:00:25.9]} 33... Rd5 {[%clk 0:00:56.7]} 34. Ne4 {[%clk 0:00:22.6]} 34... Qd7
{[%clk 0:00:53.4]} 35. Rc2 {[%clk 0:00:17.2]} 35... h3+ {[%clk 0:00:52.8]} 36.
Kf3 {[%clk 0:00:16.9]} 36... Rd3+ {[%clk 0:00:44.1]} 37. Kf2 {[%clk 0:00:17.3]}
37... Qd4+ {[%clk 0:00:44.1]} 38. Ke1 {[%clk 0:00:14.7]} 38... Qg1+ {[%clk
0:00:43.2]} 39. Qf1 {[%clk 0:00:15]} 39... Rd1+ {[%clk 0:00:43.4]} 40. Kxd1
{[%clk 0:00:15.4]} 40... Qxf1+ {[%clk 0:00:43.7]} 41. Kd2 {[%clk 0:00:16]} 41...
Bf8 {[%clk 0:00:35.8]} 42. Rxc6 {[%clk 0:00:09.9]} 42... Bb4+ {[%clk 0:00:31.7]}
43. Ke3 {[%clk 0:00:08.7]} 43... Qg1+ {[%clk 0:00:27.1]} 44. Kf3 {[%clk
0:00:06.9]} 44... Qg2+ {[%clk 0:00:20.1]} 45. Ke3 {[%clk 0:00:07]} 45... Qxh2
{[%clk 0:00:17.4]} 46. Nf6+ {[%clk 0:00:06.1]} 46... Kg7 {[%clk 0:00:16.4]} 47.
Rc8 {[%clk 0:00:06.4]} 47... Qxg3+ {[%clk 0:00:14.4]} 48. Ke4 {[%clk 0:00:04.8]}
48... Bf8 {[%clk 0:00:12.4]} 49. Ne8+ {[%clk 0:00:03.1]} 49... Kh6 {[%clk
0:00:11.9]} 50. Nf6 {[%clk 0:00:03.2]} 50... Bg7 {[%clk 0:00:10.5]} 51. Ng8+
{[%clk 0:00:01.9]} 51... Kh7 {[%clk 0:00:10.5]} 52. Ne7 {[%clk 0:00:01.1]} 52...
h2 {[%clk 0:00:09.6]} 0-1

[Event "*** Titled Tuesday Blitz"]
[Site "Chess.com"]
[Date "2020.05.19"]
[Round "8"]
[White "Tolya2"]
[Black "Nara_Kh"]
[Result "1-0"]
[WhiteElo "2445"]
[BlackElo "2276"]
[TimeControl "180+1"]
[EndTime "13:37:19 PDT"]
[Termination "Tolya2 won on time"]

1. Nf3 {[%clk 0:03:00.9]} 1... Nf6 {[%clk 0:02:57.9]} 2. d4 {[%clk 0:03:00]}
2... g6 {[%clk 0:02:57.2]} 3. g3 {[%clk 0:03:00.1]} 3... Bg7 {[%clk 0:02:57.2]}
4. Bg2 {[%clk 0:03:00.2]} 4... O-O {[%clk 0:02:57.4]} 5. O-O {[%clk 0:03:00.3]}
5... d6 {[%clk 0:02:57.7]} 6. b3 {[%clk 0:02:59.6]} 6... Nc6 {[%clk 0:02:49.4]}
7. Bb2 {[%clk 0:02:58.1]} 7... a5 {[%clk 0:02:46.1]} 8. a3 {[%clk 0:02:56.4]}
8... e5 {[%clk 0:02:33.7]} 9. dxe5 {[%clk 0:02:51.6]} 9... Ng4 {[%clk
0:02:33.1]} 10. Qd2 {[%clk 0:02:51.4]} 10... Ngxe5 {[%clk 0:02:28.1]} 11. Nxe5
{[%clk 0:02:51.1]} 11... Nxe5 {[%clk 0:02:25.5]} 12. Nc3 {[%clk 0:02:40.2]}
12... a4 {[%clk 0:02:14.5]} 13. h3 {[%clk 0:02:29.8]} 13... axb3 {[%clk
0:02:07.3]} 14. cxb3 {[%clk 0:02:28.8]} 14... Be6 {[%clk 0:02:06.9]} 15. Qc2
{[%clk 0:02:25.3]} 15... c6 {[%clk 0:01:51.1]} 16. Rad1 {[%clk 0:02:24.6]} 16...
Qb6 {[%clk 0:01:46.8]} 17. b4 {[%clk 0:02:19.2]} 17... Nc4 {[%clk 0:01:43.6]}
18. Qb1 {[%clk 0:02:18.9]} 18... Nxa3 {[%clk 0:01:36.2]} 19. Bxa3 {[%clk
0:02:09.5]} 19... Rxa3 {[%clk 0:01:35.3]} 20. Ne4 {[%clk 0:02:08.9]} 20... d5
{[%clk 0:01:29]} 21. Nc5 {[%clk 0:02:08.7]} 21... Bf5 {[%clk 0:01:29.1]} 22. e4
{[%clk 0:02:06.9]} 22... dxe4 {[%clk 0:01:23.5]} 23. Nxe4 {[%clk 0:02:01.8]}
23... Re8 {[%clk 0:00:54.2]} 24. g4 {[%clk 0:02:00.7]} 24... Bxe4 {[%clk
0:00:53.4]} 25. Bxe4 {[%clk 0:02:00.5]} 25... Rxh3 {[%clk 0:00:53.1]} 26. Bg2
{[%clk 0:01:52.4]} 26... Rh4 {[%clk 0:00:45.5]} 27. Rd7 {[%clk 0:01:44.6]} 27...
Rxg4 {[%clk 0:00:39.3]} 28. Qb3 {[%clk 0:01:39.7]} 28... Rf8 {[%clk 0:00:31.6]}
29. b5 {[%clk 0:01:35.2]} 29... Be5 {[%clk 0:00:26.3]} 30. Re1 {[%clk
0:01:27.7]} 30... Bd4 {[%clk 0:00:23.1]} 31. Re2 {[%clk 0:01:27.1]} 31... Rf4
{[%clk 0:00:22.7]} 32. Qg3 {[%clk 0:01:20.7]} 32... Rf6 {[%clk 0:00:20.1]} 33.
bxc6 {[%clk 0:01:18.9]} 33... bxc6 {[%clk 0:00:19.6]} 34. Rd6 {[%clk 0:01:12.5]}
34... Qb1+ {[%clk 0:00:18.6]} 35. Kh2 {[%clk 0:01:08.8]} 35... Rxd6 {[%clk
0:00:16.9]} 36. Qxd6 {[%clk 0:01:07.5]} 36... Qa1 {[%clk 0:00:15.7]} 37. f4
{[%clk 0:01:05.5]} 37... Kg7 {[%clk 0:00:14.4]} 38. Qxc6 {[%clk 0:01:02.6]}
38... Qg1+ {[%clk 0:00:13.7]} 39. Kh3 {[%clk 0:01:01.2]} 39... Qa1 {[%clk
0:00:09.6]} 40. Qd5 {[%clk 0:00:58.8]} 40... Qc3+ {[%clk 0:00:09]} 41. Qf3
{[%clk 0:00:55.1]} 41... Qc5 {[%clk 0:00:08.3]} 42. Rd2 {[%clk 0:00:52.2]} 42...
Qf5+ {[%clk 0:00:08.1]} 43. Kg3 {[%clk 0:00:49.8]} 43... Bf6 {[%clk 0:00:06.9]}
44. Rd5 {[%clk 0:00:49.8]} 44... Qc2 {[%clk 0:00:06.5]} 45. Qd3 {[%clk
0:00:48.1]} 45... Qb2 {[%clk 0:00:05.5]} 46. Rd6 {[%clk 0:00:47.7]} 46... h5
{[%clk 0:00:04.7]} 47. Rd7 {[%clk 0:00:46.7]} 47... h4+ {[%clk 0:00:04.7]} 48.
Kh3 {[%clk 0:00:46.3]} 48... Qf2 {[%clk 0:00:04.5]} 49. Qf3 {[%clk 0:00:45.1]}
49... Qc5 {[%clk 0:00:04.9]} 50. Rd5 {[%clk 0:00:43.6]} 50... Qc8+ {[%clk
0:00:04.6]} 51. Qg4 {[%clk 0:00:43.4]} 51... Qc3+ {[%clk 0:00:03.8]} 52. Qf3
{[%clk 0:00:43.3]} 52... Qc8+ {[%clk 0:00:03]} 53. Qg4 {[%clk 0:00:42.6]} 53...
Qc4 {[%clk 0:00:03]} 54. f5 {[%clk 0:00:39.6]} 54... Re8 {[%clk 0:00:02.6]} 55.
fxg6 {[%clk 0:00:37.5]} 55... Re3+ {[%clk 0:00:02.3]} 56. Kh2 {[%clk 0:00:37.1]}
56... Qc7+ {[%clk 0:00:02.4]} 57. Kg1 {[%clk 0:00:34.3]} 57... Qc1+ {[%clk
0:00:01.5]} 58. Kf2 {[%clk 0:00:32.2]} 1-0

[Event "*** Titled Tuesday Blitz"]
[Site "Chess.com"]
[Date "2020.05.19"]
[Round "8"]
[White "vladislavkovalev"]
[Black "kuban1991"]
[Result "1-0"]
[WhiteElo "2915"]
[BlackElo "2755"]
[TimeControl "180+1"]
[EndTime "13:37:20 PDT"]
[Termination "vladislavkovalev won on time"]

1. e4 {[%clk 0:02:59.5]} 1... e6 {[%clk 0:02:57.8]} 2. d4 {[%clk 0:02:59.4]}
2... d5 {[%clk 0:02:58.3]} 3. Bd3 {[%clk 0:03:00.2]} 3... c5 {[%clk 0:02:57.4]}
4. exd5 {[%clk 0:02:59.2]} 4... exd5 {[%clk 0:02:58.3]} 5. Nf3 {[%clk
0:02:59.8]} 5... Nc6 {[%clk 0:02:58.7]} 6. O-O {[%clk 0:02:59.8]} 6... c4 {[%clk
0:02:59]} 7. Re1+ {[%clk 0:03:00.3]} 7... Be7 {[%clk 0:02:58.2]} 8. Bf1 {[%clk
0:03:00.5]} 8... Nf6 {[%clk 0:02:58.1]} 9. b3 {[%clk 0:02:59.8]} 9... cxb3
{[%clk 0:02:57.2]} 10. axb3 {[%clk 0:03:00.7]} 10... O-O {[%clk 0:02:57]} 11. h3
{[%clk 0:03:01.3]} 11... Bf5 {[%clk 0:02:55.8]} 12. c4 {[%clk 0:02:56.7]} 12...
h6 {[%clk 0:02:48.8]} 13. Nc3 {[%clk 0:02:56.6]} 13... Nb4 {[%clk 0:02:39.7]}
14. Ba3 {[%clk 0:02:38.9]} 14... a5 {[%clk 0:02:39.5]} 15. Qd2 {[%clk
0:02:27.8]} 15... Re8 {[%clk 0:02:35.7]} 16. Re5 {[%clk 0:02:02.2]} 16... Be4
{[%clk 0:02:22.8]} 17. Nxe4 {[%clk 0:01:50.9]} 17... Nxe4 {[%clk 0:02:07.8]} 18.
Qb2 {[%clk 0:01:51.3]} 18... Bf6 {[%clk 0:02:03.7]} 19. Rxe8+ {[%clk 0:01:49.1]}
19... Qxe8 {[%clk 0:02:01.8]} 20. Re1 {[%clk 0:01:49.8]} 20... Qd7 {[%clk
0:01:48.8]} 21. Ne5 {[%clk 0:01:44.9]} 21... Qf5 {[%clk 0:01:41.2]} 22. cxd5
{[%clk 0:01:33.7]} 22... Nd6 {[%clk 0:01:24.4]} 23. Nc4 {[%clk 0:01:18.8]} 23...
Nb5 {[%clk 0:01:10.2]} 24. Bxb4 {[%clk 0:01:10.7]} 24... axb4 {[%clk 0:01:07.7]}
25. Nb6 {[%clk 0:01:11.3]} 25... Nxd4 {[%clk 0:01:05.4]} 26. Nxa8 {[%clk
0:00:58.1]} 26... Nf3+ {[%clk 0:01:03.4]} 27. gxf3 {[%clk 0:00:50]} 27... Bxb2
{[%clk 0:01:04.3]} 28. Nc7 {[%clk 0:00:46.5]} 28... Be5 {[%clk 0:01:01.2]} 29.
Nb5 {[%clk 0:00:43.3]} 29... Qf4 {[%clk 0:00:47.2]} 30. Bg2 {[%clk 0:00:41.5]}
30... g6 {[%clk 0:00:47.2]} 31. Re4 {[%clk 0:00:39.2]} 31... Qc1+ {[%clk
0:00:47.6]} 32. Bf1 {[%clk 0:00:39.7]} 32... f6 {[%clk 0:00:40]} 33. f4 {[%clk
0:00:37.6]} 33... Bxf4 {[%clk 0:00:36.5]} 34. Rc4 {[%clk 0:00:35.4]} 34... Qd2
{[%clk 0:00:29]} 35. Rd4 {[%clk 0:00:35.9]} 35... Qc1 {[%clk 0:00:26]} 36. d6
{[%clk 0:00:36.1]} 36... Bxd6 {[%clk 0:00:24]} 37. Nxd6 {[%clk 0:00:36.5]} 37...
Qg5+ {[%clk 0:00:18.1]} 38. Rg4 {[%clk 0:00:33.4]} 38... Qe5 {[%clk 0:00:14.7]}
39. Nc4 {[%clk 0:00:28.8]} 39... Qc3 {[%clk 0:00:13.4]} 40. Rxg6+ {[%clk
0:00:26.8]} 40... Kh7 {[%clk 0:00:10.4]} 41. Rg3 {[%clk 0:00:27.1]} 41... Qc1
{[%clk 0:00:10.1]} 42. Kg2 {[%clk 0:00:23.8]} 42... f5 {[%clk 0:00:07.7]} 43.
Bd3 {[%clk 0:00:24]} 43... Qf4 {[%clk 0:00:07.6]} 44. Ne3 {[%clk 0:00:17.2]}
44... Qd4 {[%clk 0:00:04.3]} 45. Nxf5 {[%clk 0:00:11.3]} 45... Qd5+ {[%clk
0:00:03.2]} 46. Kh2 {[%clk 0:00:11.9]} 46... Qxb3 {[%clk 0:00:02.2]} 47. Nd6+
{[%clk 0:00:07.8]} 47... Kh8 {[%clk 0:00:02.7]} 48. Bc4 {[%clk 0:00:05.3]} 1-0